bitfinex/quotes_BTCUSD_20251010
["timestamp","ask_amount","ask_price","bid_price","bid_amount"]
[1760113545445,0.00191231,119340.0,119330.0,1.3701693]
[1760113546606,0.00191231,119340.0,119330.0,1.2828893]
[1760113546620,0.00191231,119340.0,119330.0,0.4862064]
[1760113546849,0.00191231,119340.0,119330.0,0.7297264]
[1760113547080,0.00191231,119340.0,119330.0,0.7296864]
[1760113547532,0.00191231,119340.0,119330.0,0.4872064]
[1760113547779,0.00191231,119340.0,119330.0,0.7296864]
[1760113548016,0.00191231,119340.0,119330.0,0.7286864]
[1760113548240,0.00191231,119340.0,119330.0,1.2838493]
[1760113548458,0.00191231,119340.0,119330.0,1.2828493]
[1760113548678,0.00191231,119340.0,119330.0,0.7296864]
[1760113549126,0.00191231,119340.0,119330.0,0.37393244]
[1760113549356,0.00191231,119340.0,119330.0,0.61641244]
[1760113549817,0.00191231,119340.0,119330.0,1.2838493]
[1760113550477,0.00191231,119340.0,119330.0,0.7296864]
[1760113550693,0.00191231,119340.0,119330.0,1.2838493]
[1760113551113,0.00191231,119340.0,119330.0,1.3711293]
[1760113551320,0.00191231,119340.0,119330.0,0.4872064]
[1760113551542,0.00191231,119340.0,119330.0,0.7296864]
[1760113552601,0.00191231,119340.0,119330.0,0.7286864]
[1760113552810,0.00191231,119340.0,119330.0,0.7276864]
[1760113553021,0.00191231,119340.0,119330.0,0.4852064]
[1760113553254,0.16950071,119340.0,119330.0,0.10969]
[1760113553463,0.16950071,119340.0,119330.0,0.36831244]
[1760113553674,0.16974071,119340.0,119330.0,0.10969]
[1760113553956,0.16974071,119340.0,119330.0,0.35213]
[1760113554138,0.16974071,119340.0,119330.0,0.51973244]
[1760113554586,0.16974071,119340.0,119320.0,0.1096116]
[1760113554587,0.16760244,119330.0,119320.0,0.1096116]
[1760113554798,0.16761649,119320.0,119310.0,0.04742814]
[1760113555004,0.16785649,119320.0,119310.0,0.00052814]
[1760113555216,1.01581829,119320.0,119310.0,0.00052814]
[1760113555443,0.46165539,119320.0,119310.0,0.00052814]
[1760113555656,0.46141539,119320.0,119310.0,0.11571814]
[1760113556072,0.46165539,119320.0,119310.0,0.11571814]
[1760113556282,0.46165539,119320.0,119310.0,0.34673821]
[1760113556498,0.46141539,119320.0,119310.0,0.34673821]
[1760113556708,0.46141539,119320.0,119310.0,0.17910767]
[1760113556921,0.34,119330.0,119320.0,0.16760403]
[1760113557141,0.00191231,119340.0,119330.0,0.16760244]
[1760113557368,0.00959797,119340.0,119330.0,0.37381244]
[1760113557594,0.16760244,119330.0,119320.0,0.04889]
[1760113557839,0.16784244,119330.0,119320.0,0.11519]
[1760113558920,0.16784244,119330.0,119320.0,0.04889]
[1760113559550,0.16761649,119320.0,119310.0,0.61389793]
[1760113559756,0.16785649,119320.0,119310.0,0.17875767]
[1760113559961,0.34,119330.0,119310.0,0.44405773]
[1760113560190,0.43138043,119340.0,119320.0,0.31444649]
[1760113560463,0.43138043,119340.0,119320.0,0.45921649]
[1760113560464,0.00768566,119330.0,119320.0,0.45921649]
[1760113560695,0.1755281,119330.0,119320.0,0.2916]
[1760113560918,0.16784244,119330.0,119320.0,0.24244]
[1760113561558,0.16784244,119330.0,119310.0,0.52387374]
[1760113561820,0.17530215,119320.0,119310.0,0.52387374]
[1760113562050,0.16785649,119320.0,119310.0,0.52387821]
[1760113562276,0.17554215,119320.0,119310.0,0.58882821]
[1760113562491,0.00768566,119320.0,119310.0,0.44405821]
[1760113562911,0.17530215,119320.0,119310.0,0.44405821]
[1760113563122,0.16761649,119320.0,119310.0,0.44405821]
[1760113563356,0.16761649,119320.0,119310.0,0.27642767]
[1760113563585,0.16785649,119320.0,119310.0,0.17875767]
[1760113563803,0.16785649,119320.0,119310.0,0.34638821]
[1760113564015,0.16760269,119330.0,119310.0,0.34638821]
[1760113564240,0.17530215,119320.0,119310.0,0.44405821]
[1760113564458,0.16761649,119320.0,119310.0,0.44405821]
[1760113564901,0.16761649,119320.0,119310.0,0.34638821]
[1760113565107,0.16761649,119320.0,119310.0,0.44405821]
[1760113565551,0.16760269,119330.0,119310.0,0.44405821]
[1760113565772,0.00768566,119320.0,119310.0,0.44405821]
[1760113566039,0.35297261,119340.0,119330.0,0.16760244]
[1760113566259,0.81430751,119340.0,119330.0,0.11511]
[1760113566940,0.61180244,119330.0,119320.0,0.31444458]
[1760113567165,0.16760244,119330.0,119320.0,0.38039458]
[1760113567406,0.00024,119330.0,119320.0,0.04916]
[1760113567654,0.00191231,119340.0,119330.0,0.16760244]
[1760113567883,0.00191231,119340.0,119330.0,1.17698534]
[1760113568371,0.00191231,119340.0,119330.0,0.62286244]
[1760113568615,0.00191231,119340.0,119330.0,0.62282244]
[1760113569746,0.00191231,119340.0,119330.0,1.2601074]
[1760113569991,0.00191231,119340.0,119330.0,1.2902593]
[1760113571760,0.00191231,119340.0,119330.0,1.2912593]
[1760113572442,0.00191231,119340.0,119330.0,1.2922593]
[1760113572884,0.00191231,119340.0,119330.0,1.6322593]
[1760113573595,0.00191231,119340.0,119330.0,0.84697221]
[1760113573833,0.00191231,119340.0,119330.0,1.73085511]
[1760113575153,0.00191231,119340.0,119330.0,1.40113511]
[1760113575379,0.00191231,119340.0,119330.0,1.73085511]
[1760113576255,0.00191231,119340.0,119330.0,1.40113511]
[1760113576475,0.00191231,119340.0,119330.0,0.4655045]
[1760113576697,0.00191231,119340.0,119330.0,0.7380564]
[1760113577373,0.00191231,119340.0,119330.0,0.7079045]
[1760113577374,0.00959797,119340.0,119330.0,0.7079045]
[1760113577629,0.00191231,119340.0,119330.0,1.2620674]
[1760113577850,0.34,119370.0,119360.0,0.16756032]
[1760113577851,0.00784423,119370.0,119360.0,0.16756032]
[1760113578061,0.00799525,119370.0,119360.0,0.62274032]
[1760113578276,0.01568091,119370.0,119360.0,0.62274032]
[1760113579341,0.00783668,119370.0,119360.0,0.62274032]
[1760113579979,0.17538296,119370.0,119360.0,0.45518]
[1760113580191,0.72994443,119370.0,119350.0,0.04916]
[1760113580404,0.16757436,119350.0,119340.0,0.04916]
[1760113580619,0.16757436,119350.0,119340.0,0.29156]
[1760113580620,0.72958149,119350.0,119340.0,0.29156]
[1760113580842,0.72958149,119350.0,119330.0,0.21676244]
[1760113580843,0.1675884,119340.0,119330.0,0.21676244]
[1760113581056,0.1675884,119340.0,119330.0,0.45916244]
[1760113581285,0.1678284,119340.0,119330.0,0.45916244]
[1760113581516,0.1675884,119340.0,119330.0,0.52511244]
[1760113581730,0.73272438,119350.0,119330.0,0.62278244]
[1760113581947,0.17527406,119340.0,119330.0,0.52511244]
[1760113582170,0.1675884,119340.0,119330.0,0.52511244]
[1760113582390,0.73272438,119350.0,119330.0,0.52511244]
[1760113582594,0.00768566,119340.0,119330.0,0.62278244]
[1760113583022,0.00768566,119350.0,119340.0,0.16758222]
[1760113583237,0.17526002,119350.0,119340.0,0.28269222]
[1760113583486,0.35307297,119360.0,119350.0,0.16757436]
[1760113583696,0.0078445,119360.0,119350.0,0.62275436]
[1760113583909,0.17538296,119370.0,119360.0,0.16756032]
[1760113584130,0.17538296,119370.0,119360.0,0.38034032]
[1760113584131,0.1755418,119370.0,119360.0,0.38034032]
[1760113584341,0.00799552,119370.0,119360.0,0.38034032]
[1760113584551,0.00942012,119370.0,119360.0,0.38034032]
[1760113585215,0.1769664,119370.0,119360.0,0.38034032]
[1760113585474,0.00957896,119370.0,119360.0,0.38034032]
[1760113585693,0.00942012,119370.0,119360.0,0.38034032]
[1760113586583,0.00173446,119370.0,119360.0,0.38034032]
[1760113587017,0.00173446,119370.0,119360.0,1.04777718]
[1760113587236,0.01553016,119400.0,119390.0,0.16751821]
[1760113587450,0.01565667,119400.0,119390.0,0.45915821]
[1760113587659,0.00781217,119400.0,119390.0,0.62277821]
[1760113587870,0.17531635,119400.0,119390.0,0.38029821]
[1760113588105,0.00797101,119400.0,119390.0,0.62277821]
[1760113588321,0.17531635,119400.0,119390.0,0.62277821]
[1760113588569,0.01565667,119400.0,119390.0,0.62277821]
[1760113588765,0.00781217,119400.0,119390.0,0.62277821]
[1760113588991,0.00012651,119400.0,119390.0,0.38029821]
[1760113589206,0.00781217,119400.0,119390.0,0.68700252]
[1760113589890,0.00012651,119400.0,119390.0,0.68700252]
[1760113590116,0.18378757,119420.0,119400.0,0.16750418]
[1760113590332,0.0078445,119420.0,119410.0,0.62172015]
[1760113590552,0.16746214,119430.0,119420.0,0.16747613]
[1760113590757,0.16747613,119420.0,119410.0,0.21434015]
[1760113590990,0.16749015,119410.0,119390.0,0.11342431]
[1760113591231,0.00301217,119400.0,119390.0,0.52346208]
[1760113591442,0.00301217,119400.0,119390.0,0.58888208]
[1760113591869,0.0078445,119410.0,119400.0,0.16750418]
[1760113592118,0.17050232,119410.0,119400.0,0.27977418]
[1760113592346,0.17050232,119410.0,119390.0,0.52350238]
[1760113592347,0.73251755,119410.0,119390.0,0.52350238]
[1760113592629,0.73251755,119410.0,119400.0,0.27977418]
[1760113592630,0.5650274,119410.0,119400.0,0.27977418]
[1760113592839,0.0078445,119410.0,119400.0,0.37933418]
[1760113593053,0.50747637,119420.0,119410.0,0.16749015]
[1760113593054,0.0078445,119420.0,119410.0,0.16749015]
[1760113593260,0.00301217,119420.0,119410.0,0.62208015]
[1760113593463,0.1704883,119420.0,119410.0,0.45459]
[1760113593674,0.0078445,119420.0,119410.0,0.62208015]
[1760113593879,0.00301217,119420.0,119410.0,0.62208015]
[1760113595594,0.1704883,119420.0,119410.0,0.62208015]
[1760113595810,0.17834063,119420.0,119410.0,0.24268]
[1760113596027,0.73250353,119420.0,119410.0,0.52244015]
[1760113596251,0.73250353,119420.0,119410.0,0.45702015]
[1760113596531,0.73250353,119420.0,119410.0,0.21434015]
[1760113596759,1.02605413,119420.0,119400.0,0.45703418]
[1760113596971,0.00301217,119410.0,119400.0,0.45703418]
[1760113597218,0.00301217,119410.0,119400.0,0.52245418]
[1760113597458,0.72768522,119410.0,119390.0,0.28930768]
[1760113597670,0.72467305,119410.0,119400.0,0.16750418]
[1760113597891,0.17051015,119410.0,119400.0,0.23292418]
[1760113598107,0.73001312,119420.0,119400.0,0.27977418]
[1760113598333,0.00301217,119410.0,119400.0,0.27977418]
[1760113598558,0.00512245,119410.0,119400.0,0.27977418]
[1760113598775,0.1726126,119410.0,119400.0,0.27977418]
[1760113599037,0.00211028,119410.0,119400.0,0.27977418]
[1760113599276,0.1726126,119410.0,119400.0,0.37933418]
[1760113599480,0.16960043,119410.0,119400.0,0.37933418]
[1760113599701,0.00211028,119410.0,119400.0,0.27977418]
[1760113599924,0.1726126,119410.0,119400.0,0.27977418]
[1760113600142,1.1551565,119410.0,119390.0,0.52358252]
[1760113600386,0.17051015,119410.0,119390.0,0.52358252]
[1760113600862,0.86136372,119410.0,119390.0,0.52358252]
[1760113601090,0.17051015,119410.0,119400.0,0.27977418]
[1760113601341,0.16749015,119410.0,119400.0,0.27977418]
[1760113601543,0.17051015,119410.0,119400.0,0.16750418]
[1760113602034,0.16750418,119400.0,119390.0,0.11342431]
[1760113602250,0.16751821,119390.0,119370.0,0.45703357]
[1760113602501,0.68896357,119390.0,119380.0,0.16753224]
[1760113602717,0.34,119400.0,119380.0,0.37936224]
[1760113602959,0.75018418,119400.0,119390.0,0.04685]
[1760113603183,0.75018418,119400.0,119380.0,0.11227]
[1760113603184,0.16751821,119390.0,119380.0,0.11227]
[1760113603410,0.16753224,119380.0,119370.0,0.3517229]
[1760113603633,0.17055224,119380.0,119370.0,0.10920941]
[1760113603839,0.17055224,119380.0,119370.0,0.17462941]
[1760113604292,0.17055224,119380.0,119370.0,0.27675569]
[1760113604497,0.17055224,119380.0,119370.0,0.10920941]
[1760113604644,0.17055224,119380.0,119370.0,0.11020941]
[1760113604875,0.17055224,119380.0,119370.0,0.10920941]
[1760113605115,0.41327224,119380.0,119370.0,0.34217569]
[1760113605548,0.41327224,119380.0,119370.0,0.17462941]
[1760113605757,0.41025224,119380.0,119370.0,0.27994279]
[1760113605950,0.24272,119380.0,119370.0,0.27994279]
[1760113606268,0.41025224,119380.0,119370.0,0.27994279]
[1760113606492,0.41327224,119380.0,119370.0,0.11239651]
[1760113607153,0.41327224,119380.0,119370.0,0.04697651]
[1760113607394,0.41327224,119380.0,119370.0,0.23309279]
[1760113607610,1.16726199,119390.0,119370.0,0.27994279]
[1760113607822,0.28500589,119380.0,119370.0,0.27994279]
[1760113607988,0.24252,119380.0,119370.0,0.27994279]
[1760113608159,0.41005224,119380.0,119370.0,0.27994279]
[1760113608380,0.17055224,119380.0,119370.0,0.27994279]
[1760113608594,0.41307224,119380.0,119370.0,0.11239651]
[1760113608791,0.75307224,119380.0,119370.0,0.27671279]
[1760113609546,0.58244,119380.0,119370.0,0.27671279]
[1760113609771,0.3,119390.0,119380.0,0.16753224]
[1760113609975,0.76077688,119400.0,119390.0,0.16751821]
[1760113610183,0.80891956,119400.0,119390.0,0.27742821]
[1760113610390,0.88385538,119400.0,119390.0,0.27742821]
[1760113610596,0.64141538,119400.0,119390.0,0.27742821]
[1760113610811,0.86481379,119420.0,119400.0,0.16749522]
[1760113611070,0.02345743,119420.0,119410.0,0.16749015]
[1760113611271,1.05413952,119420.0,119410.0,0.16749015]
[1760113611472,0.72761629,119420.0,119410.0,0.22968015]
[1760113611669,0.72761629,119420.0,119410.0,0.27740015]
[1760113611883,0.01045989,119420.0,119410.0,0.27740015]
[1760113612035,0.00263763,119420.0,119410.0,0.37066015]
[1760113612889,0.0056498,119420.0,119410.0,0.37066015]
[1760113613091,0.17614593,119420.0,119400.0,0.21521483]
[1760113613290,0.17831839,119420.0,119410.0,0.16749015]
[1760113613442,0.16749015,119410.0,119400.0,0.21522418]
[1760113613656,0.17833241,119410.0,119400.0,0.21522418]
[1760113613858,0.01084226,119410.0,119400.0,0.27741418]
[1760113614064,0.19096078,119420.0,119410.0,0.16749015]
[1760113614270,0.48753879,119420.0,119410.0,0.27740015]
[1760113615088,0.72989879,119420.0,119410.0,0.10991]
[1760113615513,0.72989879,119420.0,119410.0,0.27740015]
[1760113615794,0.48753879,119420.0,119410.0,0.16749015]
[1760113615990,1.42074236,119420.0,119400.0,0.04772]
[1760113616171,0.17050232,119410.0,119400.0,0.21522418]
[1760113616339,0.17833241,119410.0,119400.0,0.21522418]
[1760113617169,0.00782226,119410.0,119400.0,0.27241418]
[1760113617336,0.17832458,119410.0,119400.0,0.27241418]
[1760113617545,0.17832458,119410.0,119390.0,0.27715154]
[1760113617546,0.87529598,119410.0,119390.0,0.27715154]
[1760113617746,0.18633241,119410.0,119390.0,0.51947154]
[1760113617960,0.16750418,119400.0,119390.0,0.27715284]
[1760113618189,1.12455001,119400.0,119390.0,0.06191463]
[1760113618395,1.12455001,119400.0,119390.0,0.23269821]
[1760113618396,0.87531001,119400.0,119390.0,0.23269821]
[1760113618597,0.17532644,119400.0,119390.0,0.27958821]
[1760113618872,0.00782226,119400.0,119390.0,0.37317821]
[1760113619080,0.00301217,119400.0,119390.0,0.37317821]
[1760113619509,0.17051635,119400.0,119390.0,0.27958821]
[1760113619716,0.17532644,119400.0,119390.0,0.27958821]
[1760113619939,0.87531001,119400.0,119390.0,0.04689]
[1760113620139,0.87531001,119400.0,119380.0,0.31638199]
[1760113620355,0.87533316,119400.0,119390.0,0.16751821]
[1760113620556,0.18636959,119400.0,119390.0,0.16751821]
[1760113620793,0.00784541,119400.0,119390.0,0.37317821]
[1760113621019,0.00301217,119400.0,119390.0,0.37317821]
[1760113621480,0.17051635,119400.0,119390.0,0.43663835]
[1760113621713,0.17534959,119400.0,119390.0,0.43663835]
[1760113621934,0.18636959,119400.0,119390.0,0.27786835]
[1760113622395,0.17534959,119400.0,119390.0,0.34304835]
[1760113622646,0.18636959,119400.0,119390.0,0.34304835]
[1760113622876,0.00784541,119400.0,119390.0,0.43663835]
[1760113623103,0.00301217,119400.0,119390.0,0.43663835]
[1760113623343,0.02353627,119410.0,119400.0,0.16750418]
[1760113623553,0.28011978,119430.0,119420.0,0.16747613]
[1760113623768,0.93734417,119430.0,119420.0,0.27954613]
[1760113624198,0.93734372,119430.0,119420.0,0.27954613]
[1760113624402,0.93734372,119430.0,119410.0,0.2143679]
[1760113624626,0.64381802,119430.0,119420.0,0.16747613]
[1760113624841,0.93734452,119430.0,119410.0,0.2143679]
[1760113625081,0.00301217,119420.0,119410.0,0.2143679]
[1760113625292,0.18935326,119420.0,119410.0,0.2795479]
[1760113625520,0.01886496,119420.0,119410.0,0.2795479]
[1760113625734,0.01085713,119420.0,119410.0,0.42886499]
[1760113625948,0.00784496,119430.0,119420.0,0.19762803]
[1760113626170,0.00784496,119430.0,119420.0,1.41769366]
[1760113626393,0.03396173,119460.0,119450.0,0.16743407]
[1760113626394,0.01588804,119460.0,119450.0,0.16743407]
[1760113626614,0.000351,119460.0,119450.0,0.45692407]
[1760113626850,0.000351,119460.0,119450.0,0.61569407]
[1760113627082,0.000351,119460.0,119450.0,0.43443129]
[1760113627320,0.17879105,119460.0,119450.0,0.51842129]
[1760113627536,0.19447909,119460.0,119450.0,0.10822722]
[1760113627745,0.19447909,119460.0,119450.0,0.06133722]
[1760113627953,0.19447909,119460.0,119440.0,0.45708579]
[1760113628169,0.17044624,119450.0,119440.0,0.28961]
[1760113628373,0.17044624,119450.0,119430.0,0.21435211]
[1760113628374,0.16744809,119440.0,119430.0,0.21435211]
[1760113628601,0.16744809,119440.0,119420.0,0.21436613]
[1760113628602,0.17846809,119440.0,119420.0,0.21436613]
[1760113628810,0.17846809,119440.0,119420.0,0.45704613]
[1760113628811,0.00301217,119430.0,119420.0,0.45704613]
[1760113629020,0.00301217,119430.0,119420.0,0.62619367]
[1760113629227,0.34,119450.0,119440.0,0.16744809]
[1760113629429,0.34,119450.0,119440.0,0.52219809]
[1760113630483,0.34,119450.0,119440.0,0.11207]
[1760113630693,0.34,119450.0,119440.0,0.52223809]
[1760113631815,0.000351,119460.0,119450.0,0.16743407]
[1760113632061,0.34494482,119460.0,119450.0,0.37309407]
[1760113632312,0.34193265,119460.0,119450.0,0.37309407]
[1760113632527,0.5093527,119460.0,119450.0,0.343127]
[1760113632803,0.34193265,119460.0,119450.0,0.343127]
[1760113633004,0.5093527,119460.0,119450.0,0.343127]
[1760113633689,0.5203727,119460.0,119450.0,0.06362293]
[1760113634129,0.8138256,119460.0,119450.0,0.16743407]
[1760113634352,0.8138256,119460.0,119440.0,0.45705565]
[1760113634593,0.17044624,119450.0,119440.0,0.21433565]
[1760113634862,0.16743407,119450.0,119440.0,0.27951565]
[1760113635077,0.75049105,119460.0,119440.0,0.52219565]
[1760113635298,0.17044624,119450.0,119440.0,0.52219565]
[1760113635514,0.17845407,119450.0,119440.0,0.27951809]
[1760113635736,0.17845407,119450.0,119440.0,0.52215809]
[1760113638495,0.340351,119460.0,119450.0,0.16743407]
[1760113638717,0.340351,119460.0,119450.0,0.37309407]
[1760113638718,0.34816932,119460.0,119450.0,0.37309407]
[1760113639974,0.34816932,119460.0,119450.0,0.27950407]
[1760113640387,0.34975097,119460.0,119450.0,0.27950407]
[1760113640603,0.16743407,119450.0,119440.0,0.21433809]
[1760113640817,0.50777105,119460.0,119440.0,0.52199809]
[1760113641023,0.18146624,119450.0,119440.0,0.52207809]
[1760113641226,0.17845407,119450.0,119440.0,0.28941]
[1760113641454,0.01102,119450.0,119440.0,0.52203809]
[1760113641657,0.51558628,119460.0,119440.0,0.52203809]
[1760113642023,0.17845407,119450.0,119440.0,0.52203809]
[1760113642708,0.17845407,119450.0,119440.0,0.52195809]
[1760113643372,0.17845407,119450.0,119440.0,0.45677809]
[1760113643617,0.01102,119450.0,119440.0,0.45677809]
[1760113643826,0.01403217,119450.0,119440.0,0.45677809]
[1760113644049,0.16744809,119440.0,119430.0,0.04689]
[1760113644266,0.17846809,119440.0,119430.0,0.04689]
[1760113644481,0.17846809,119440.0,119430.0,0.16746211]
[1760113644699,0.17846809,119440.0,119430.0,0.23264211]
[1760113644865,0.16744809,119440.0,119430.0,0.27953211]
[1760113646485,0.50848859,119450.0,119440.0,0.16744809]
[1760113646692,0.89612355,119450.0,119440.0,0.16744809]
[1760113646897,1.13836355,119450.0,119440.0,0.16744809]
[1760113647325,0.16744809,119440.0,119430.0,0.21435211]
[1760113647541,1.13836355,119450.0,119440.0,0.06518]
[1760113647542,0.34,119450.0,119440.0,0.06518]
[1760113647755,0.34,119450.0,119440.0,0.37310809]
[1760113648195,0.51845407,119450.0,119440.0,0.27951809]
[1760113648414,0.50743407,119450.0,119440.0,0.61990809]
[1760113648623,0.50743407,119450.0,119440.0,0.52179809]
[1760113648850,0.51845407,119450.0,119440.0,0.11207]
[1760113649066,0.51845407,119450.0,119440.0,0.40968809]
[1760113649479,0.51845407,119450.0,119440.0,0.47233809]
[1760113649715,0.51845407,119450.0,119430.0,0.55474211]
[1760113650001,0.51845407,119450.0,119440.0,0.16744809]
[1760113650220,0.50746211,119430.0,119420.0,0.06236388]
[1760113650443,1.44980568,119430.0,119410.0,0.1688974]
[1760113650630,0.16747613,119420.0,119410.0,0.21734733]
[1760113650839,0.16747613,119420.0,119410.0,0.27999733]
[1760113651513,0.74982211,119430.0,119410.0,0.27999733]
[1760113651925,0.1704883,119420.0,119410.0,0.27999733]
[1760113652145,0.01102,119420.0,119410.0,0.27999733]
[1760113652364,0.1815083,119420.0,119410.0,0.21734733]
[1760113652575,0.17849613,119420.0,119410.0,0.00140725]
[1760113653184,0.72396728,119430.0,119410.0,0.3781074]
[1760113653389,0.00301217,119420.0,119410.0,0.43984835]
[1760113653597,0.00301217,119420.0,119410.0,0.3781074]
[1760113653815,0.1815083,119420.0,119410.0,0.2799974]
[1760113654025,0.17849613,119420.0,119410.0,0.2799974]
[1760113654555,0.723968,119430.0,119410.0,0.2799974]
[1760113654759,0.00301217,119420.0,119410.0,0.2799974]
[1760113654959,0.00301217,119420.0,119410.0,0.3781074]
[1760113655442,0.31422486,119430.0,119420.0,0.16747613]
[1760113655658,0.49270697,119430.0,119420.0,0.1111]
[1760113655859,0.49270697,119430.0,119420.0,0.04845]
[1760113656060,0.49270697,119430.0,119420.0,0.16747613]
[1760113656292,0.31422486,119430.0,119420.0,0.27857613]
[1760113656508,0.00052731,119440.0,119430.0,0.16746211]
[1760113656714,0.00067828,119440.0,119430.0,0.61947211]
[1760113657290,0.00067828,119440.0,119430.0,0.61959211]
[1760113658497,0.00369045,119440.0,119430.0,0.61959211]
[1760113659317,0.00369045,119440.0,119430.0,0.52148211]
[1760113659523,0.00369045,119440.0,119430.0,0.61959211]
[1760113660139,0.00369045,119440.0,119430.0,0.61955211]
[1760113660561,0.00067828,119440.0,119430.0,0.61955211]
[1760113661203,0.00369045,119440.0,119430.0,0.61955211]
[1760113663430,0.00067828,119440.0,119430.0,0.61955211]
[1760113664808,0.00369045,119440.0,119430.0,0.61955211]
[1760113667122,0.00369045,119440.0,119430.0,0.61919211]
[1760113668915,0.00369045,119440.0,119430.0,1.25528064]
[1760113668916,0.00067828,119440.0,119430.0,1.25528064]
[1760113670067,0.00067828,119440.0,119430.0,0.70231417]
[1760113673346,0.00067828,119440.0,119430.0,0.61919211]
[1760113673544,0.00067828,119440.0,119430.0,0.61895211]
[1760113675012,0.00067828,119440.0,119430.0,1.28519254]
[1760113676434,0.00067828,119440.0,119430.0,0.48994607]
[1760113676693,0.00067828,119440.0,119430.0,0.73222607]
[1760113676918,0.00067828,119440.0,119430.0,0.45979417]
[1760113677108,0.00067828,119440.0,119430.0,0.70407417]
[1760113677313,0.00067828,119440.0,119430.0,0.46179417]
[1760113677521,0.00067828,119440.0,119430.0,0.61995211]
[1760113677522,0.00369045,119440.0,119430.0,0.61995211]
[1760113677729,0.00067828,119440.0,119430.0,1.00924445]
[1760113678339,0.00067828,119440.0,119430.0,0.61995211]
[1760113678541,0.00067828,119440.0,119430.0,1.00824445]
[1760113678937,0.00067828,119440.0,119430.0,1.12151841]
[1760113679140,0.00067828,119440.0,119430.0,0.73222607]
[1760113679348,0.00067828,119440.0,119430.0,1.12151841]
[1760113680563,0.00067828,119440.0,119430.0,1.09136651]
[1760113680766,0.00067828,119440.0,119430.0,1.12151841]
[1760113680966,0.00067828,119440.0,119430.0,1.51081075]
[1760113681337,0.00067828,119440.0,119430.0,0.73222607]
[1760113681605,0.00067828,119440.0,119430.0,1.12151841]
[1760113682011,0.00067828,119440.0,119430.0,0.87923841]
[1760113682213,0.00067828,119440.0,119430.0,1.20867841]
[1760113682423,0.00067828,119440.0,119430.0,1.12147841]
[1760113682640,0.00301217,119450.0,119440.0,0.0301519]
[1760113682849,0.0002,119460.0,119450.0,0.16743407]
[1760113683049,0.0002,119460.0,119450.0,0.45866407]
[1760113683260,0.0002,119460.0,119450.0,0.52068407]
[1760113683466,0.0002,119460.0,119450.0,1.08465847]
[1760113683689,0.0002,119460.0,119450.0,0.69536613]
[1760113683903,0.0002,119460.0,119450.0,1.08465847]
[1760113684144,0.38949234,119460.0,119450.0,0.61224407]
[1760113684347,0.40159234,119460.0,119450.0,0.52068407]
[1760113684554,0.0002,119460.0,119450.0,0.61224407]
[1760113685358,0.0002,119460.0,119450.0,1.00153641]
[1760113685573,0.0002,119460.0,119450.0,0.61224407]
[1760113685887,0.0002,119460.0,119450.0,0.62231991]
[1760113687025,0.0002,119460.0,119450.0,0.61224407]
[1760113687540,0.0002,119460.0,119450.0,0.37000407]
[1760113687747,0.00321217,119460.0,119450.0,0.27844407]
[1760113687997,0.00321217,119460.0,119450.0,0.52068407]
[1760113688195,0.00321217,119460.0,119450.0,0.50644863]
[1760113688390,0.00321217,119460.0,119450.0,0.6738827]
[1760113688391,0.00125439,119460.0,119450.0,0.6738827]
[1760113689002,0.00125439,119460.0,119450.0,0.75700476]
[1760113692541,0.00125439,119460.0,119450.0,0.51476476]
[1760113692696,0.00125439,119460.0,119450.0,0.6738827]
[1760113693098,0.00426656,119460.0,119450.0,0.6738827]
[1760113693323,0.00426656,119460.0,119450.0,0.4316427]
[1760113693595,1.02993572,119460.0,119450.0,0.06163863]
[1760113693793,1.02692355,119460.0,119450.0,0.06163863]
[1760113694007,0.16743407,119450.0,119440.0,0.21643809]
[1760113694215,0.16744809,119440.0,119430.0,0.21591211]
[1760113694455,0.0121,119440.0,119430.0,0.52017211]
[1760113694668,0.72012558,119450.0,119440.0,0.16744809]
[1760113694876,1.02570898,119450.0,119430.0,0.45815211]
[1760113695080,1.02570898,119450.0,119440.0,0.16744809]
[1760113695081,0.73222558,119450.0,119440.0,0.16744809]
[1760113695312,0.47301747,119450.0,119440.0,0.27845809]
[1760113695581,0.46091747,119450.0,119440.0,0.27845809]
[1760113695790,0.2934834,119450.0,119440.0,0.27845809]
[1760113696009,0.0002,119460.0,119450.0,0.16743407]
[1760113696226,0.0002,119460.0,119450.0,0.61224407]
[1760113696643,0.0002,119460.0,119450.0,1.24805764]
[1760113696852,0.0002,119460.0,119450.0,0.69536613]
[1760113698312,0.0002,119460.0,119450.0,0.45312613]
[1760113698513,0.0002,119460.0,119450.0,0.61220407]
[1760113700029,0.0002,119460.0,119450.0,1.27816954]
[1760113700460,0.00125439,119460.0,119450.0,1.27816954]
[1760113701307,0.00125439,119460.0,119450.0,1.28016954]
[1760113701514,0.00125439,119460.0,119450.0,0.72747803]
[1760113702953,0.00125439,119460.0,119450.0,0.48527803]
[1760113703155,0.00125439,119460.0,119450.0,0.81467803]
[1760113703361,0.00125439,119460.0,119450.0,0.48527803]
[1760113703563,0.00125439,119460.0,119450.0,0.45512613]
[1760113703765,0.00125439,119460.0,119450.0,0.69732613]
[1760113705437,0.00125439,119460.0,119450.0,0.45512613]
[1760113705649,0.00125439,119460.0,119450.0,0.69732613]
[1760113707106,0.00125439,119460.0,119450.0,0.37200407]
[1760113707360,0.00125439,119460.0,119450.0,0.61420407]
[1760113708805,0.00301217,119470.0,119460.0,0.18616566]
[1760113709017,0.0035153,119470.0,119460.0,0.23517566]
[1760113709233,0.0035153,119470.0,119460.0,0.38931566]
[1760113711360,0.17092134,119470.0,119460.0,0.29768566]
[1760113711590,0.73270068,119470.0,119460.0,0.42832566]
[1760113712029,0.73270068,119470.0,119460.0,0.49083566]
[1760113712251,0.00050313,119470.0,119460.0,0.69444653]
[1760113712442,0.0035153,119470.0,119460.0,0.69444653]
[1760113712694,0.17092134,119470.0,119460.0,0.69444653]
[1760113712912,0.16790917,119470.0,119460.0,0.69444653]
[1760113713377,0.00050313,119470.0,119460.0,0.69444653]
[1760113714045,0.0035153,119470.0,119460.0,0.69444653]
[1760113714261,0.56830681,119470.0,119460.0,0.60281653]
[1760113714508,0.00103023,119470.0,119460.0,0.60281653]
[1760113714740,0.0040424,119470.0,119460.0,0.69444653]
[1760113714975,0.00103023,119470.0,119460.0,0.69444653]
[1760113715226,0.00103023,119470.0,119460.0,1.360412]
[1760113715866,0.00103023,119470.0,119460.0,0.80772049]
[1760113716123,0.00103023,119470.0,119460.0,0.36798854]
[1760113716349,0.00103023,119470.0,119460.0,0.77756859]
[1760113716809,0.16843627,119470.0,119460.0,0.77756859]
[1760113717263,0.16843627,119470.0,119460.0,0.28486648]
[1760113717498,0.18053627,119470.0,119460.0,0.43539648]
[1760113717726,0.73322778,119470.0,119460.0,0.32387648]
[1760113717953,0.18053627,119470.0,119460.0,0.32387648]
[1760113718441,0.00103023,119470.0,119460.0,0.69444653]
[1760113718654,0.0040424,119470.0,119460.0,0.69444653]
[1760113719286,0.18436557,119480.0,119470.0,0.18137581]
[1760113719533,0.18451642,119480.0,119470.0,0.18137581]
[1760113719744,0.01711719,119480.0,119470.0,0.38452581]
[1760113719918,0.18450922,119480.0,119470.0,0.38452581]